bitfinex/quotes_ETHUSD_20260113
["timestamp","ask_amount","ask_price","bid_price","bid_amount"]
[1768347490549,6.43387932,3313.0,3311.8,0.98643899]
[1768347491148,6.43387932,3313.0,3311.4,3.99690515]
[1768347491149,0.99274442,3312.9,3311.4,3.99690515]
[1768347491371,1.63613235,3312.9,3311.5,4.51996547]
[1768347491571,0.59338793,3312.9,3312.1,0.97705303]
[1768347491777,0.99274442,3313.5,3312.1,0.97705303]
[1768347491944,0.397,3313.4,3312.3,0.97705303]
[1768347492138,1.04029137,3313.4,3312.3,0.97705303]
[1768347493174,6.03627802,3313.3,3312.3,0.97705303]
[1768347493373,6.03627802,3313.3,3312.0,0.97705303]
[1768347494146,6.03627802,3313.3,3312.6,0.001]
[1768347494779,6.03627802,3313.3,3311.4,0.97705303]
[1768347494780,0.99274442,3313.2,3311.4,0.97705303]
[1768347495093,0.99274442,3313.0,3311.6,0.97705303]
[1768347495247,0.397,3312.9,3311.7,0.97705303]
[1768347497453,3.01859454,3312.8,3311.8,0.94329842]
[1768347498482,7.02350206,3312.8,3311.5,0.20515129]
[1768347498681,0.002,3313.8,3312.3,0.94329842]
[1768347498855,0.002,3313.8,3311.5,0.20515129]
[1768347498856,0.98631298,3313.3,3311.9,0.94329842]
[1768347499056,0.98631298,3313.3,3312.0,0.03019323]
[1768347499399,6.06646599,3313.2,3312.0,0.94329842]
[1768347499558,3.0182301,3313.2,3312.0,0.94329842]
[1768347499758,6.0364602,3313.2,3312.1,1.33956193]
[1768347499954,6.0364602,3313.2,3312.1,0.94329842]
[1768347500155,0.98631298,3313.1,3311.8,0.94329842]
[1768347500362,0.98631298,3313.1,3311.6,3.01963698]
[1768347500603,0.98631298,3313.1,3311.6,3.9629354]
[1768347500898,0.98631298,3313.0,3311.7,0.41680867]
[1768347501060,0.397,3312.9,3311.7,0.41680867]
[1768347501583,3.01859454,3312.8,3311.7,0.41680867]
[1768347501785,3.01859454,3312.8,3311.6,0.94329842]
[1768347501786,7.02350206,3312.8,3311.6,0.94329842]
[1768347501991,0.98631298,3312.7,3311.5,0.20515129]
[1768347502998,6.03718908,3312.8,3311.5,0.20515129]
[1768347502999,1.01631877,3312.6,3311.5,0.20515129]
[1768347503217,1.01631877,3312.6,3311.3,0.94329842]
[1768347503516,0.98631298,3312.6,3311.3,0.94329842]
[1768347503688,3.01886792,3312.5,3311.3,0.94329842]
[1768347504011,0.397,3312.4,3311.3,0.94329842]
[1768347504210,0.397,3312.4,3311.4,0.39633438]
[1768347504416,0.397,3312.4,3311.3,0.94329842]
[1768347504615,0.397,3312.4,3311.3,3.96325522]
[1768347505280,0.397,3312.4,3311.3,3.96322849]
[1768347505495,0.397,3312.4,3311.3,0.94329842]
[1768347505680,6.0381004,3312.3,3311.3,0.94329842]
[1768347505894,0.64351004,3312.2,3311.3,0.94329842]
[1768347506290,0.64351004,3312.2,3311.6,0.001]
[1768347507697,6.03846502,3312.1,3311.6,0.001]
[1768347508089,0.98631298,3312.0,3310.6,0.94329842]
[1768347508503,0.98631298,3311.8,3310.3,0.94329842]
[1768347508693,0.98631298,3311.6,3310.3,0.94329842]
[1768347509091,0.98631298,3311.4,3310.0,0.94329842]
[1768347509321,0.398,3311.3,3310.0,0.94329842]
[1768347509718,3.02005315,3311.2,3310.0,0.94329842]
[1768347510027,6.0401063,3311.2,3310.0,0.94329842]
[1768347510225,6.78254823,3311.2,3310.0,0.94329842]
[1768347510426,3.76249508,3311.2,3310.0,3.9644319]
[1768347510726,3.76249508,3311.2,3310.0,0.94329842]
[1768347511139,3.76249508,3311.2,3309.7,0.009]
[1768347511140,6.0401063,3311.2,3310.2,0.94329842]
[1768347511300,3.02005315,3311.2,3310.2,0.94329842]
[1768347511607,6.0401063,3311.2,3310.2,0.94329842]
[1768347512109,3.02005315,3311.2,3310.2,0.94329842]
[1768347512304,10.04647243,3311.2,3309.9,0.94329842]
[1768347512503,0.98631298,3311.0,3309.7,0.009]
[1768347513300,0.98631298,3311.0,3309.7,0.95229842]
[1768347513628,0.398,3310.9,3309.7,0.95229842]
[1768347514196,3.02035359,3310.9,3309.7,0.009]
[1768347514395,3.01999847,3311.3,3309.9,0.94329842]
[1768347514628,3.01999847,3311.3,3310.1,0.94329842]
[1768347514807,3.41799847,3311.3,3310.1,0.94329842]
[1768347515009,0.64379475,3311.3,3310.1,0.94329842]
[1768347515212,0.398,3311.9,3310.3,0.96631238]
[1768347516308,6.4369537,3311.9,3310.5,0.96631238]
[1768347516508,3.41747685,3311.9,3310.5,0.96631238]
[1768347516834,6.4369537,3311.9,3310.7,0.96631238]
[1768347517224,7.34059746,3311.9,3310.6,0.70078783]
[1768347517420,0.93364955,3311.8,3310.3,0.96631238]
[1768347517621,0.90364376,3311.8,3309.9,0.397]
[1768347517803,0.90364376,3311.8,3309.9,3.41820615]
[1768347518006,0.90364376,3311.6,3310.0,0.43845185]
[1768347518201,0.90364376,3311.6,3309.9,3.41820701]
[1768347518202,0.90364376,3311.2,3309.9,0.16]
[1768347518429,0.90364376,3311.2,3309.9,3.1811856]
[1768347518708,0.90364376,3311.2,3309.9,7.16873729]
[1768347519125,0.90364376,3311.2,3309.9,4.14749798]
[1768347519313,0.90364376,3311.2,3310.2,0.001]
[1768347520539,3.92370718,3311.2,3310.2,0.001]
[1768347521745,0.90364376,3311.1,3310.2,0.001]
[1768347522319,0.398,3311.3,3310.2,0.001]
[1768347522320,0.90364376,3310.9,3310.2,0.001]
[1768347523005,0.398,3310.8,3310.2,0.001]
[1768347523213,1.13221149,3310.8,3310.2,0.001]
[1768347523910,0.398,3310.8,3310.2,0.001]
[1768347525023,3.41844081,3310.8,3310.2,0.001]
[1768347525258,0.398,3310.8,3310.2,0.001]
[1768347526219,0.90364376,3311.5,3310.2,0.001]
[1768347526423,3.01996194,3311.3,3310.2,0.001]
[1768347526642,0.73415491,3311.2,3310.2,0.001]
[1768347527156,1.30164376,3311.4,3310.0,3.02114803]
[1768347527157,3.01990658,3311.4,3310.1,0.96631238]
[1768347527356,3.01990658,3311.4,3310.3,0.96631238]
[1768347528052,3.01990658,3311.4,3310.1,3.85]
[1768347528053,0.90364376,3311.3,3310.1,3.85]
[1768347528355,6.06981895,3311.4,3309.7,0.009]
[1768347528356,0.90364376,3311.1,3309.7,0.009]
[1768347528557,0.90364376,3310.9,3309.7,0.009]
[1768347528860,0.398,3310.8,3309.8,0.0302133]
[1768347529024,0.398,3310.8,3309.9,1.36900691]
[1768347529223,0.398,3310.9,3310.0,0.03021148]
[1768347529415,0.398,3310.9,3309.9,1.36900691]
[1768347529935,0.90364376,3310.8,3309.7,0.009]
[1768347530429,0.90364376,3310.8,3309.7,3.03041053]
[1768347530628,3.92406621,3310.8,3309.7,0.009]
[1768347531056,6.94448866,3310.8,3309.7,0.009]
[1768347531422,0.90364376,3310.7,3310.2,0.001]
[1768347531625,0.69444887,3310.6,3309.7,0.009]
[1768347532440,3.71505062,3310.6,3309.7,0.009]
[1768347532853,0.69444887,3310.6,3309.7,0.009]
[1768347533156,3.71506225,3310.6,3309.7,0.009]
[1768347533378,0.398,3310.6,3309.8,0.99652568]
[1768347533579,3.02040123,3310.9,3309.8,0.99652568]
[1768347533746,0.398,3310.8,3309.8,0.99652568]
[1768347534282,3.41840123,3310.9,3309.8,0.99652568]
[1768347534490,3.41840123,3310.9,3309.9,0.40269306]
[1768347534787,6.43880246,3310.9,3309.8,0.96631238]
[1768347535147,6.43880246,3310.9,3309.7,0.009]
[1768347535148,0.90364376,3310.8,3309.7,0.009]
[1768347535451,0.90364376,3310.6,3309.7,0.009]
[1768347535975,0.90364376,3310.8,3309.7,0.009]
[1768347536177,1.01341803,3310.7,3309.7,0.009]
[1768347536478,0.73424462,3310.7,3309.7,0.009]
[1768347536684,0.398,3310.9,3309.7,3.99669221]
[1768347536979,3.42026739,3311.0,3309.8,0.99652568]
[1768347537542,3.02230258,3311.0,3309.8,0.96631238]
[1768347538280,0.002,3311.0,3309.8,0.96631238]
[1768347538475,3.02224998,3311.0,3309.8,0.96631238]
[1768347538676,3.02224998,3311.0,3310.0,0.96631238]
[1768347538880,0.002,3311.0,3310.0,0.96631238]
[1768347540676,0.002,3311.0,3310.2,0.96631238]
[1768347540979,0.002,3311.0,3309.9,3.72296521]
[1768347540980,0.90564376,3311.0,3309.9,0.70181141]
[1768347541187,0.27956134,3310.9,3309.7,0.97531238]
[1768347541342,0.002,3311.0,3309.9,0.96631238]
[1768347541656,0.27956238,3310.9,3310.1,0.96631238]
[1768347541839,0.002,3311.0,3310.3,0.96631238]
[1768347542043,3.01928265,3312.1,3311.0,0.96631238]
[1768347542044,0.398,3312.1,3311.0,0.96631238]
[1768347542269,0.27958217,3312.0,3311.0,0.96631238]
[1768347542486,0.27958217,3311.9,3310.7,0.96631238]
[1768347542687,0.27958217,3311.8,3310.9,0.96631238]
[1768347542857,0.90364376,3312.1,3311.0,0.70071484]
[1768347543570,0.90364376,3312.1,3310.7,3.02048927]
[1768347543780,0.398,3312.4,3310.8,0.96631238]
[1768347543781,1.30164376,3312.4,3310.8,0.96631238]
[1768347544071,0.398,3312.8,3310.8,0.96631238]
[1768347544271,0.002,3312.9,3310.8,0.96631238]
[1768347544470,3.02072015,3312.7,3311.1,4.599233]
[1768347544677,3.02072015,3312.7,3311.5,0.96631238]
[1768347544678,0.002,3312.7,3311.5,0.96631238]
[1768347545665,0.002,3312.4,3311.5,0.96631238]
[1768347545865,0.002,3312.7,3312.4,0.95163188]
[1768347546484,0.002,3312.7,3311.7,0.95163188]
[1768347546788,0.002,3312.7,3311.8,3.019506]
[1768347547105,0.002,3312.7,3311.9,0.60391012]
[1768347547259,0.002,3312.7,3312.0,0.95163188]
[1768347548157,0.002,3312.7,3312.1,0.95163188]
[1768347548896,0.002,3312.7,3312.0,0.397]
[1768347549052,0.002,3312.7,3311.9,0.397]
[1768347549253,0.002,3312.7,3311.9,1.7854544]
[1768347549684,0.002,3312.7,3312.0,0.95163188]
[1768347549856,0.002,3312.7,3311.8,0.397]
[1768347550054,0.002,3312.7,3311.8,1.34863188]
[1768347550365,0.002,3312.7,3311.9,0.95163188]
[1768347550680,0.002,3312.7,3312.0,0.95163188]
[1768347550977,0.002,3312.7,3312.1,0.95163188]
[1768347551167,0.002,3312.9,3312.1,0.95163188]
[1768347552776,0.002,3312.9,3312.2,0.95163188]
[1768347553101,0.002,3312.9,3312.3,0.397]
[1768347553272,0.002,3312.9,3311.9,4.40783221]
[1768347553472,0.002,3312.9,3312.0,0.397]
[1768347553672,0.002,3312.9,3312.2,0.95163188]
[1768347554296,0.98559532,3312.8,3311.3,0.16]
[1768347554602,0.002,3312.9,3311.1,1.11163188]
[1768347554603,0.98759532,3312.9,3311.5,0.95163188]
[1768347554800,4.00612018,3312.9,3311.6,3.41668836]
[1768347554993,0.40061202,3312.8,3311.6,3.41668836]
[1768347555200,0.03773357,3312.7,3311.6,0.397]
[1768347555384,0.40061202,3312.8,3311.6,0.397]
[1768347555697,0.40061202,3312.8,3311.8,0.95163188]
[1768347555903,0.002,3312.9,3312.0,0.95163188]
[1768347556200,0.002,3312.9,3312.2,0.95163188]
[1768347556403,0.002,3312.9,3312.1,0.397]
[1768347556902,0.002,3312.9,3312.2,3.01914135]
[1768347557081,0.002,3312.9,3312.3,0.34161414]
[1768347557279,0.002,3312.9,3312.4,0.94166529]
[1768347557678,0.002,3312.6,3312.4,0.94166529]
[1768347557883,0.002,3312.9,3312.4,0.94166529]
[1768347558685,0.002,3312.9,3312.3,0.34161414]
[1768347559181,0.002,3312.9,3312.4,0.89166529]
[1768347559978,0.002,3312.9,3312.5,0.94166529]
[1768347560293,0.002,3313.2,3312.4,0.42522953]
[1768347560294,0.002,3313.2,3312.7,0.94166529]
[1768347560493,0.002,3313.2,3312.6,0.397]
[1768347560714,0.002,3313.2,3312.4,1.36689482]
[1768347560877,0.002,3313.2,3312.5,0.397]
[1768347561708,0.002,3313.2,3312.5,3.41582376]
[1768347562014,0.002,3313.2,3312.5,0.397]
[1768347562182,0.002,3313.2,3312.5,3.41583185]
[1768347562383,0.002,3313.2,3312.6,0.94166529]
[1768347562602,0.002,3313.2,3312.7,1.377415]
[1768347563347,0.002,3313.2,3312.3,0.397]
[1768347566090,0.95372557,3313.2,3311.8,3.01946644]
[1768347566429,0.95172557,3313.0,3311.9,0.397]
[1768347566720,0.002,3313.2,3312.2,3.01909117]
[1768347566933,0.002,3313.2,3312.2,0.60383447]
[1768347567111,0.002,3313.2,3312.4,0.94166529]
[1768347567430,0.002,3313.2,3312.6,0.94166529]
[1768347568040,0.002,3313.2,3312.6,1.33866529]
[1768347569040,0.002,3313.2,3312.7,0.94166529]
[1768347569197,0.002,3313.2,3312.7,1.11471519]
[1768347570143,0.002,3312.9,3312.7,1.11471519]
[1768347570442,0.002,3313.2,3312.7,0.1730499]
[1768347570625,0.002,3313.2,3312.7,3.19171414]
[1768347571007,0.002,3313.2,3312.7,0.1730499]
[1768347571327,0.002,3313.2,3312.8,0.45314636]
[1768347571528,0.002,3313.2,3312.7,0.1730499]
[1768347572109,0.002,3313.2,3312.7,1.11471519]
[1768347575315,0.002,3313.2,3312.7,4.1333967]
[1768347575661,0.002,3313.5,3312.8,0.97188652]
[1768347575809,0.002,3313.5,3312.7,6.21041707]
[1768347576015,0.002,3313.5,3312.8,0.66084171]
[1768347576515,0.002,3313.5,3312.8,1.63272823]
[1768347576744,0.002,3313.5,3312.9,0.97188652]
[1768347577559,0.002,3313.5,3313.0,3.99029883]
[1768347577853,0.002,3313.5,3313.0,3.01841231]
[1768347578015,0.002,3313.5,3313.1,0.34102461]
[1768347578649,0.002,3313.5,3313.1,1.70991113]
[1768347579022,0.002,3313.5,3313.1,2.10174488]
[1768347580042,0.002,3313.5,3313.1,5.12002819]
[1768347580217,0.002,3313.8,3313.1,3.75630792]
[1768347580412,0.002,3313.8,3313.2,0.37563079]
[1768347580814,0.002,3313.8,3313.2,1.34751731]
[1768347581558,0.92648897,3313.2,3311.8,0.16]
[1768347581755,0.92648897,3313.2,3311.8,3.01949436]
[1768347581756,1.20623488,3313.1,3311.8,3.01949436]
[1768347582051,0.06949944,3313.2,3313.0,0.001]
[1768347582259,0.07149944,3313.2,3312.1,0.97188652]
[1768347582657,0.07149944,3313.2,3312.2,1.36888652]
[1768347582956,3.08976005,3313.2,3312.3,0.97188652]
[1768347583158,0.07149944,3313.2,3312.3,0.97188652]
[1768347583659,3.08973521,3313.2,3312.2,0.397]
[1768347583962,0.4731178,3313.2,3312.2,0.397]
[1768347584361,3.49135438,3313.2,3312.2,0.397]
[1768347584658,7.43607993,3313.2,3312.2,0.397]
[1768347584843,0.92648897,3313.1,3311.7,3.99141191]
[1768347585042,0.74360799,3313.0,3311.9,3.01935499]
[1768347585362,0.74360799,3313.0,3312.0,0.0152777]
[1768347586159,0.74360799,3313.0,3311.9,3.03468336]
[1768347586344,3.76204058,3313.0,3311.9,0.0152777]
[1768347586545,4.68852955,3313.0,3312.0,0.397]
[1768347586762,0.46885296,3312.9,3312.0,0.397]
[1768347588653,3.9449267,3313.0,3312.0,0.397]
[1768347589677,3.9449267,3313.0,3311.8,3.99138646]
[1768347589889,0.92648897,3312.1,3310.7,0.397]
[1768347590198,4.34361473,3312.3,3310.8,0.97188652]
[1768347590371,4.34361473,3312.3,3310.7,3.41743118]
[1768347590372,0.27949023,3312.2,3311.0,0.97188652]
[1768347590560,3.94529133,3312.6,3311.0,0.97188652]
[1768347590884,0.92648897,3312.4,3310.9,0.43893177]
[1768347591060,0.92648897,3312.2,3310.8,0.97188652]
[1768347591945,0.92648897,3312.0,3310.9,0.01530005]
[1768347592479,0.398,3311.9,3310.9,0.01530005]
[1768347593275,1.32448897,3312.0,3310.9,0.98718657]
[1768347593959,3.17946615,3312.3,3310.9,0.97188652]
[1768347594145,0.80859551,3312.2,3310.9,0.97188652]
[1768347594349,0.398,3312.2,3310.9,0.97188652]
[1768347595169,0.16041343,3312.3,3310.9,0.97188652]
[1768347596549,0.398,3312.4,3311.0,0.97188652]
[1768347596871,0.398,3312.4,3311.2,0.97188652]
[1768347597291,0.002,3312.7,3311.2,0.97188652]
[1768347597501,0.002,3312.7,3311.4,0.97188652]
[1768347597656,0.002,3312.7,3311.6,0.97188652]
[1768347598358,0.3438506,3312.7,3311.8,0.97188652]
[1768347598560,0.002,3312.7,3311.8,0.97188652]
[1768347600387,0.002,3312.7,3312.0,0.97188652]
[1768347604665,0.002,3312.7,3312.0,3.99119239]
[1768347604869,0.002,3313.0,3312.0,3.99119239]
[1768347604870,0.002,3313.0,3312.2,0.97188652]
[1768347606406,0.002,3313.5,3312.7,0.91744426]
[1768347606615,0.91883961,3313.9,3312.9,0.91744426]
[1768347606908,0.398,3314.1,3312.9,0.91744426]
[1768347607401,0.91883961,3313.7,3311.7,0.91744426]
[1768347607577,0.91883961,3313.5,3311.7,3.93697425]
[1768347607899,0.91883961,3313.3,3311.8,0.43349743]
[1768347608099,0.91883961,3313.3,3311.9,0.91744426]
[1768347608589,0.91883961,3313.3,3312.0,0.91744426]
[1768347609296,0.91883961,3313.2,3312.0,0.91744426]
[1768347609501,0.39370443,3313.1,3312.0,0.91744426]
[1768347610170,0.91883961,3313.0,3311.7,0.91744426]
[1768347610571,0.91883961,3313.0,3311.8,0.91744426]
[1768347610974,0.91883961,3313.0,3311.8,3.93692777]
[1768347611703,0.39370443,3313.1,3311.8,3.93692777]
[1768347611704,0.39370443,3313.1,3311.9,0.91744426]
[1768347612003,0.91883961,3313.3,3312.1,0.91744426]
[1768347612203,0.91883961,3313.2,3312.2,0.01527224]
[1768347612506,0.91883961,3313.2,3312.0,0.39522073]
[1768347612673,3.9366143,3313.7,3312.3,0.91744426]
[1768347612878,3.9366143,3313.7,3312.5,0.91744426]
[1768347612879,0.97934148,3313.6,3312.5,0.91744426]
[1768347613089,0.27936219,3313.5,3312.5,0.91744426]
[1768347613289,0.0493,3314.0,3312.9,0.91744426]
[1768347613488,0.002,3314.3,3313.3,0.91744426]
[1768347613680,0.002,3314.6,3313.5,0.91744426]
[1768347614499,0.002,3314.6,3313.6,0.91744426]
[1768347617309,0.002,3314.9,3313.4,0.398]
[1768347617310,0.002,3314.9,3313.9,0.98865479]
[1768347617496,0.002,3314.9,3314.0,0.98865479]
[1768347618172,0.002,3315.2,3314.0,0.98865479]
[1768347618173,0.002,3315.2,3314.3,0.98865479]
[1768347618482,0.002,3315.5,3314.3,0.98865479]
[1768347618811,0.002,3314.6,3314.3,0.98865479]
[1768347619109,3.01578353,3315.9,3314.0,0.79863082]
[1768347619110,0.002,3316.2,3315.2,0.98865479]
[1768347619310,0.002,3316.2,3315.3,13.84679641]
[1768347619605,0.90449148,3316.7,3315.4,0.98865479]
[1768347620399,0.002,3316.9,3315.9,0.98865479]
[1768347620600,0.002,3317.0,3315.9,0.98865479]
[1768347621005,0.002,3317.0,3316.0,0.398]
[1768347621579,0.002,3317.0,3316.0,0.44024078]
[1768347621910,0.90449148,3317.0,3315.3,0.16]
[1768347622108,0.90449148,3317.0,3315.5,3.01613062]
[1768347622318,0.90449148,3317.0,3315.5,3.01611172]
[1768347622613,0.002,3317.0,3315.8,0.98865479]
[1768347622775,0.002,3317.0,3315.4,0.398]
[1768347622776,0.002,3317.0,3315.5,2.34962]
[1768347622979,0.90449148,3317.0,3315.6,3.34986018]
[1768347623278,0.90449148,3317.0,3315.6,0.33382748]
[1768347623591,0.90449148,3317.0,3315.7,0.398]
[1768347624177,0.94017727,3316.9,3315.6,0.398]
[1768347624386,0.90249148,3316.7,3315.6,0.398]
[1768347624877,0.90249148,3316.7,3315.2,0.397]
[1768347625810,3.91756804,3316.7,3315.2,0.397]
[1768347626009,0.90249148,3316.6,3315.2,0.397]
[1768347628122,0.69717404,3316.8,3315.6,12.46014162]
[1768347628296,0.90449148,3317.0,3315.6,12.46014162]
[1768347628912,3.9192674,3317.0,3315.6,12.46014162]
[1768347629215,3.9192674,3317.0,3315.6,13.44879641]
[1768347629410,0.90449148,3317.0,3315.6,0.98865479]
[1768347629614,3.9192669,3317.0,3315.6,0.98865479]
[1768347629823,0.43162669,3316.9,3315.6,0.98865479]
[1768347630121,1.33411817,3316.9,3315.3,16.46505189]
[1768347630327,0.002,3317.0,3315.9,0.98865479]
[1768347630613,0.002,3317.0,3316.0,0.76348927]
[1768347630791,0.002,3317.0,3316.0,1.38565479]
[1768347630993,0.002,3317.0,3316.1,0.397]
[1768347631992,0.002,3317.0,3316.2,0.98865479]
[1768347632337,0.90449148,3317.0,3315.5,0.98965479]
[1768347632487,0.90249148,3316.9,3315.9,0.397]
[1768347632823,0.002,3317.0,3315.9,0.397]
[1768347633794,0.90449148,3317.0,3315.5,0.001]
[1768347634134,0.90249148,3316.9,3315.6,0.397]
[1768347634418,0.90249148,3316.9,3315.5,3.31883842]
[1768347634419,0.90249148,3316.7,3315.5,0.001]
[1768347634599,0.90249148,3316.7,3315.5,0.398]
[1768347635402,0.90249148,3316.7,3315.5,0.001]
[1768347635721,0.96641672,3316.5,3315.5,0.001]
[1768347636620,0.96641672,3316.4,3315.5,0.001]
[1768347638413,3.98149062,3316.7,3315.5,0.001]
[1768347638639,0.96641672,3316.6,3315.5,0.001]
[1768347639814,3.01505466,3316.7,3315.5,0.92971155]
[1768347640119,0.96641672,3316.6,3315.5,0.001]
[1768347640512,0.96641672,3316.4,3315.5,0.001]
[1768347641929,0.96641672,3316.4,3315.8,0.001]
[1768347642766,3.98149782,3316.7,3315.8,0.001]
[1768347642953,0.39814978,3316.6,3315.8,0.001]
[1768347644937,3.75328961,3316.9,3315.8,0.001]
[1768347645242,0.27900463,3316.8,3315.8,0.001]
[1768347645443,0.27900463,3316.7,3315.8,0.001]
[1768347645642,0.27900463,3316.6,3315.8,0.001]
[1768347645859,88.1913,3316.6,3315.8,0.001]
[1768347646164,3.3376697,3316.5,3315.8,0.001]
[1768347646473,88.1913,3316.6,3316.0,0.92871155]
[1768347646678,88.1913,3316.6,3315.9,1.32345082]
[1768347646961,88.1913,3316.6,3316.0,0.92871155]
[1768347647267,88.1913,3316.6,3316.5,0.94376622]
[1768347648562,88.1913,3316.6,3316.5,0.01505467]
[1768347648984,88.1913,3316.6,3315.9,3.41051003]
[1768347648985,88.1913,3316.6,3315.9,0.39473927]
[1768347649136,88.1913,3316.6,3315.8,0.001]
[1768347649466,88.71086698,3316.6,3315.8,0.001]
[1768347649641,0.28014225,3316.5,3315.8,0.001]
[1768347649849,88.71086698,3316.6,3315.8,0.001]
[1768347650069,0.96641672,3316.4,3315.6,3.85]
[1768347650362,0.96641672,3316.2,3315.5,0.001]
[1768347650563,91.72600492,3316.6,3315.5,0.001]
[1768347650564,0.28010882,3316.1,3315.5,0.001]
[1768347650769,3.09588783,3316.5,3315.5,0.001]
[1768347650947,0.28003443,3316.4,3315.5,0.001]
[1768347651146,0.28003443,3316.3,3315.5,0.001]
[1768347651356,0.28003443,3316.2,3315.5,0.001]
[1768347651564,3.0581975,3316.4,3315.5,0.001]
[1768347651737,0.28010193,3316.3,3315.5,0.001]
[1768347652070,0.28010193,3316.2,3315.5,0.001]
[1768347652270,0.28010193,3316.1,3315.5,0.001]
[1768347652470,3.0581975,3316.4,3315.5,0.001]
[1768347652675,0.89175151,3316.3,3315.5,0.001]
[1768347652971,0.28011201,3316.2,3315.5,0.001]
[1768347653276,0.6116395,3316.3,3315.5,0.001]
[1768347653277,0.28011201,3316.1,3315.5,0.001]
[1768347653440,3.0581975,3316.5,3315.8,0.001]
[1768347653634,1.26509428,3316.4,3315.8,0.001]
[1768347653836,0.28011542,3316.3,3315.8,0.001]
[1768347655074,88.1913,3316.6,3315.8,0.92971155]
[1768347655276,0.28011849,3316.5,3315.8,0.92971155]
[1768347655572,0.28011849,3316.4,3315.8,0.92971155]
[1768347655774,88.1913,3316.6,3315.8,0.92971155]
[1768347655972,0.28012292,3316.5,3315.9,0.94390321]
[1768347656178,88.1913,3316.6,3315.9,0.01519166]
[1768347656475,0.28012113,3316.5,3315.9,0.01519166]
[1768347656673,88.1913,3316.6,3315.9,0.94390321]
[1768347656876,0.28006737,3316.5,3315.9,0.94390321]
[1768347657076,88.1913,3316.6,3315.9,0.94390321]
[1768347657686,88.1913,3316.6,3315.9,1.33998286]
[1768347657887,88.1913,3316.6,3316.0,0.92871155]
[1768347658498,88.1913,3316.6,3315.9,0.41127131]
[1768347658499,88.1913,3316.6,3315.9,0.39607965]
[1768347658789,88.1913,3316.6,3315.8,0.001]
[1768347660382,0.27992483,3316.5,3315.8,0.001]
[1768347660554,88.1913,3316.6,3315.8,0.001]
[1768347660555,88.1913,3316.6,3315.8,0.398]
[1768347660750,0.27991528,3316.5,3315.8,0.398]
[1768347661006,88.1913,3316.6,3315.8,0.398]
[1768347661185,0.2799079,3316.5,3315.8,0.001]
[1768347661360,0.96641672,3316.5,3315.8,0.001]
[1768347661566,0.96641672,3316.3,3315.8,0.001]
[1768347661767,91.2064877,3316.6,3315.8,0.001]
[1768347661768,0.27996179,3316.2,3315.8,0.001]
[1768347661950,0.397,3316.4,3315.8,0.001]
[1768347662150,0.27996079,3316.3,3315.8,0.001]
[1768347662354,0.397,3316.4,3315.8,0.001]
[1768347662355,1.28407125,3316.2,3315.8,0.001]
[1768347662667,0.27996079,3316.1,3315.8,0.001]
[1768347662984,1.24637751,3316.1,3315.8,0.001]
[1768347663187,0.27996079,3316.0,3315.8,0.001]
[1768347663498,0.15263383,3315.9,3315.8,0.001]
[1768347663782,0.96641672,3315.8,3315.5,0.001]
[1768347663954,1.24637751,3315.7,3314.4,0.92871155]
[1768347664156,0.397,3315.9,3314.6,0.92871155]
[1768347664387,0.28004996,3315.8,3314.6,0.92871155]
[1768347664556,1.24646668,3315.7,3314.3,4.34289091]
[1768347664769,0.28004996,3315.6,3314.5,0.92871155]
[1768347664974,0.96641672,3315.7,3314.5,3.94569959]
[1768347665220,0.96641672,3315.7,3314.5,0.92871155]
[1768347665712,0.96641672,3315.7,3314.6,0.93584925]
[1768347666010,0.2800979,3315.6,3314.6,0.93584925]
[1768347666225,0.397,3315.9,3314.7,0.93584925]
[1768347666527,0.399,3316.3,3314.7,0.93584925]
[1768347666813,0.28005118,3316.2,3314.7,0.93584925]
[1768347667012,0.28005118,3316.1,3314.7,0.93584925]
[1768347667178,1.23072965,3316.0,3314.7,0.93584925]
[1768347667377,1.23072965,3315.9,3314.8,0.398]
[1768347667613,0.28005118,3315.8,3314.8,0.398]
[1768347667774,0.95067847,3315.9,3314.7,0.93584925]
[1768347667974,0.95067847,3315.9,3313.4,3.36983947]
[1768347667975,0.95067847,3315.7,3314.8,0.398]
[1768347668296,0.95067847,3315.7,3314.3,3.95299568]
[1768347668297,0.95067847,3315.7,3314.6,0.398]
[1768347669108,1.35109388,3315.7,3314.6,0.7395118]
[1768347669308,3.01569457,3316.0,3314.7,0.93584925]
[1768347669309,0.95067847,3316.0,3314.7,0.93584925]
[1768347669515,0.27987849,3315.9,3314.7,0.93584925]
[1768347669678,0.27987849,3315.8,3314.7,0.93584925]
[1768347669879,0.95067847,3316.0,3314.7,0.93584925]
[1768347670080,0.2798798,3315.9,3314.7,0.93584925]
[1768347670281,0.70450383,3315.8,3314.7,0.93584925]
[1768347670511,0.42462403,3315.8,3314.7,0.93584925]
[1768347670719,0.95067847,3316.0,3314.7,0.93584925]
[1768347670880,0.2798277,3315.9,3314.7,0.93584925]
[1768347671080,0.2798277,3315.8,3314.7,1.33384925]
[1768347671386,3.96643185,3316.0,3314.7,1.33384925]
[1768347671591,0.67640481,3315.9,3314.7,1.33384925]
[1768347671791,1.23044009,3315.8,3314.7,1.33384925]
[1768347671996,0.95067847,3315.8,3314.7,0.93584925]
[1768347672180,0.95067847,3315.8,3314.7,0.398]
[1768347673622,0.95067847,3315.8,3314.6,0.398]
[1768347674324,0.95067847,3315.8,3314.6,0.93584925]
[1768347674491,0.18545802,3315.7,3314.6,1.33384925]
[1768347675602,0.18545802,3315.7,3314.6,0.93584925]
[1768347675806,0.18545802,3315.7,3314.6,1.33384925]
[1768347677313,1.12798264,3315.7,3314.7,0.001]
[1768347677518,4.14393879,3315.7,3314.7,0.001]
[1768347677714,0.41439388,3315.6,3314.7,0.001]
[1768347678424,0.94252462,3315.5,3314.7,0.001]
[1768347682713,0.94252462,3315.4,3314.7,0.001]
[1768347682933,0.03770397,3315.3,3314.7,0.001]
[1768347683992,0.94252462,3315.4,3314.7,0.001]
[1768347684506,1.84647533,3315.6,3314.7,0.001]
[1768347684709,1.18551796,3315.5,3314.7,0.001]